bitfinex-derivatives/quotes_BNBF0:USTF0_20260114
["timestamp","ask_amount","ask_price","bid_price","bid_amount"]
[1768418244057,1.111,944.92,943.25,1.05700392]
[1768418244352,1.111,944.92,943.24,1.05700392]
[1768418245360,1.111,944.92,943.23,1.05700392]
[1768418246155,1.111,944.92,943.22,1.05700392]
[1768418247256,1.111,944.92,943.21,1.05700392]
[1768418247661,1.111,944.92,943.2,1.05700392]
[1768418248160,1.111,944.92,943.19,1.05700392]
[1768418249255,1.111,944.92,943.18,1.05700392]
[1768418250062,1.111,944.92,943.17,1.05700392]
[1768418250461,1.111,944.92,943.15,1.05700392]
[1768418251359,1.111,944.92,942.43,0.18433277]
[1768418251360,1.111,944.92,943.14,1.05700392]
[1768418251564,1.111,944.92,943.08,1.05700392]
[1768418252264,1.111,944.92,943.07,1.05700392]
[1768418253266,1.111,944.92,943.06,1.05700392]
[1768418254268,1.111,944.92,943.05,1.05700392]
[1768418255066,1.111,944.92,943.04,1.05700392]
[1768418256165,1.111,944.92,943.03,1.05700392]
[1768418257266,1.111,944.92,943.02,1.05700392]
[1768418258468,1.111,944.92,943.01,1.05700392]
[1768418260167,1.111,944.92,942.84,1.5768736]
[1768418260168,1.111,944.92,943.0,1.05700392]
[1768418260467,1.111,944.92,942.95,1.05700392]
[1768418261070,1.111,944.92,942.96,1.05700392]
[1768418261267,1.111,944.92,942.95,1.05700392]
[1768418262165,1.111,944.92,942.88,1.05700392]
[1768418262368,1.111,944.92,942.81,1.05700392]
[1768418262568,1.111,944.92,942.8,1.05700392]
[1768418263070,1.111,944.92,942.67,1.05700392]
[1768418263269,1.111,944.92,942.58,1.05700392]
[1768418264271,1.111,944.92,942.55,1.05700392]
[1768418264573,1.111,944.92,942.51,1.05700392]
[1768418264866,1.111,944.92,942.5,1.05700392]
[1768418265269,1.111,944.92,942.48,1.05700392]
[1768418265873,1.111,944.92,942.51,1.05700392]
[1768418266072,0.18423762,944.93,942.52,1.05700392]
[1768418266273,0.18423762,944.93,942.59,1.05700392]
[1768418267170,0.18423762,944.93,942.6,1.05700392]
[1768418267373,0.18423762,944.93,942.59,1.05700392]
[1768418268277,0.18423762,944.93,942.58,1.05700392]
[1768418268876,1.655,944.92,942.58,1.05700392]
[1768418269085,1.655,944.92,942.55,1.05700392]
[1768418270378,1.655,944.92,942.57,1.05700392]
[1768418270576,1.655,944.92,942.58,1.05700392]
[1768418270972,1.655,944.92,942.59,1.05700392]
[1768418271176,1.655,944.92,942.58,1.05700392]
[1768418271377,1.655,944.92,942.59,1.05700392]
[1768418272378,1.655,944.92,942.62,1.05700392]
[1768418274276,1.655,944.92,942.63,1.05700392]
[1768418275280,1.655,944.92,942.64,1.05700392]
[1768418275881,1.655,944.92,942.63,1.05700392]
[1768418276080,1.655,944.92,942.64,1.05700392]
[1768418276276,1.655,944.92,942.65,1.05700392]
[1768418276777,1.655,944.92,942.62,1.05700392]
[1768418277381,1.655,944.92,942.63,1.05700392]
[1768418278281,1.655,944.92,942.64,1.05700392]
[1768418279179,1.655,944.92,942.65,1.05700392]
[1768418281683,1.655,944.92,942.62,1.05700392]
[1768418282183,1.655,944.92,942.59,1.05700392]
[1768418282483,1.655,944.92,942.57,1.05700392]
[1768418283079,1.655,944.92,942.4,1.5768736]
[1768418283080,1.655,944.92,942.55,1.05700392]
[1768418283282,1.655,944.92,942.5,1.05700392]
[1768418284181,1.655,944.92,942.49,1.05700392]
[1768418284484,1.655,944.92,942.5,1.05700392]
[1768418285286,1.655,944.92,942.53,1.05700392]
[1768418285582,1.655,944.92,942.56,1.05700392]
[1768418285788,1.655,944.92,942.59,1.05700392]
[1768418287386,1.655,944.92,942.6,1.05700392]
[1768418289282,1.655,944.92,942.61,1.05700392]
[1768418289782,1.655,944.92,942.6,1.05700392]
[1768418290386,1.655,944.92,942.61,1.05700392]
[1768418291282,1.655,944.92,942.62,1.05700392]
[1768418292291,1.655,944.92,942.63,1.05700392]
[1768418294285,1.655,944.92,942.64,1.05700392]
[1768418294887,1.655,944.92,942.63,1.05700392]
[1768418295185,1.655,944.92,942.61,1.05700392]
[1768418295390,1.655,944.92,942.55,1.05700392]
[1768418296591,1.655,944.92,942.56,1.05700392]
[1768418298392,1.655,944.92,942.57,1.05700392]
[1768418300391,1.655,944.92,942.58,1.05700392]
[1768418301291,1.655,944.92,942.59,1.05700392]
[1768418302397,1.655,944.92,942.6,1.05700392]
[1768418302598,1.655,944.92,942.62,1.05700392]
[1768418303494,1.655,944.92,942.63,1.05700392]
[1768418304401,1.655,944.92,942.65,1.05700392]
[1768418305400,1.655,944.92,942.67,1.05700392]
[1768418306400,1.655,944.92,942.69,1.05700392]
[1768418307298,1.655,944.92,942.7,1.05700392]
[1768418308002,1.655,944.92,942.69,1.05700392]
[1768418311699,1.655,944.92,942.64,1.05700392]
[1768418313103,1.655,944.92,942.63,1.05700392]
[1768418314304,1.655,944.92,942.67,1.05700392]
[1768418318910,1.655,944.92,942.63,1.05700392]
[1768418321412,1.655,944.92,942.64,1.05700392]
[1768418324305,1.655,944.92,942.65,1.05700392]
[1768418326911,0.18423762,944.93,942.65,1.05700392]
[1768418330013,1.274,944.92,942.66,1.05700392]
[1768418331715,1.274,944.92,942.67,1.05700392]
[1768418332011,1.274,944.92,942.71,1.05700392]
[1768418333719,1.274,944.92,942.86,1.05700392]
[1768418336115,1.274,944.92,942.85,1.05700392]
[1768418337120,1.274,944.92,942.87,1.05700392]
[1768418337320,1.274,944.92,942.94,1.05700392]
[1768418337917,1.274,944.92,943.0,1.05700392]
[1768418338416,1.274,944.92,942.99,1.05700392]
[1768418339116,1.274,944.92,942.97,1.05700392]
[1768418339319,1.274,944.92,942.92,1.05700392]
[1768418340218,1.274,944.92,942.91,1.05700392]
[1768418341223,1.274,944.92,942.9,1.05700392]
[1768418342232,1.274,944.92,942.89,1.05700392]
[1768418343224,1.274,944.92,942.88,1.05700392]
[1768418344220,1.274,944.92,942.87,1.05700392]
[1768418345124,1.274,944.92,942.86,1.05700392]
[1768418345524,1.274,944.92,942.8,1.05700392]
[1768418347425,1.274,944.92,942.79,1.05700392]
[1768418349228,1.274,944.92,942.85,1.05700392]
[1768418351131,1.274,944.92,942.84,1.05700392]
[1768418356134,1.274,944.92,942.83,1.05700392]
[1768418358133,1.274,944.92,942.84,1.05700392]
[1768418361234,1.274,944.92,942.85,1.05700392]
[1768418361531,1.274,944.92,942.8,1.05700392]
[1768418362032,0.18423762,944.93,942.8,1.05700392]
[1768418365039,1.67,944.92,942.8,1.05700392]
[1768418365231,6.20313687,944.92,942.81,1.05700392]
[1768418365835,1.67,944.92,942.81,1.05700392]
[1768418366333,1.67,944.92,942.78,1.05700392]
[1768418367543,1.67,944.92,942.77,1.05700392]
[1768418368140,1.67,944.92,942.78,1.05700392]
[1768418370039,1.67,944.92,942.14,0.18438747]
[1768418370040,1.67,944.92,942.79,1.05700392]
[1768418371144,1.67,944.92,942.8,1.05700392]
[1768418371641,1.67,944.92,942.78,1.05700392]
[1768418371842,1.67,944.92,942.73,1.05700392]
[1768418372140,1.67,944.92,942.74,1.05700392]
[1768418372346,1.67,944.92,942.73,1.05700392]
[1768418372643,1.67,944.92,942.72,1.05700392]
[1768418373145,1.67,944.92,942.55,1.5768736]
[1768418373146,1.67,944.92,942.73,1.05700392]
[1768418375252,1.67,944.92,942.74,1.05700392]
[1768418376253,1.67,944.92,942.72,1.05700392]
[1768418376453,1.67,944.92,942.7,1.05700392]
[1768418378759,1.67,944.92,942.73,1.05700392]
[1768418382153,1.67,944.92,942.72,1.05700392]
[1768418389266,1.67,944.92,942.71,1.05700392]
[1768418390065,1.67,944.92,942.72,1.05700392]
[1768418390564,1.67,944.92,942.71,1.05700392]
[1768418390766,1.67,944.92,942.7,1.05700392]
[1768418392266,1.67,944.92,942.69,1.05700392]
[1768418395664,1.67,944.92,942.7,1.05700392]
[1768418395869,1.67,944.92,942.79,1.05700392]
[1768418397773,1.67,944.92,942.81,1.05700392]
[1768418397969,1.67,944.92,942.82,1.05700392]
[1768418399268,1.67,944.92,942.83,1.05700392]
[1768418400273,1.67,944.92,942.84,1.05700392]
[1768418402074,1.67,944.92,942.85,1.05700392]
[1768418403174,1.67,944.92,942.86,1.05700392]
[1768418403371,1.67,944.92,942.87,1.05700392]
[1768418403671,0.18433766,944.41,943.07,1.05700392]
[1768418403971,0.18433766,944.41,943.09,1.05700392]
[1768418404374,0.18433766,944.41,943.08,1.05700392]
[1768418404688,0.18433766,944.41,943.15,1.05700392]
[1768418405270,0.18433766,944.41,943.13,1.05700392]
[1768418406374,0.18433766,944.41,943.11,1.05700392]
[1768418407273,0.18433766,944.41,942.94,1.5768736]
[1768418407274,0.18433766,944.41,943.1,1.05700392]
[1768418408275,0.18433766,944.41,943.09,1.05700392]
[1768418409375,0.18433766,944.41,943.08,1.05700392]
[1768418410074,0.18433766,944.41,943.07,1.05700392]
[1768418410373,0.18433766,944.41,943.06,1.05700392]
[1768418411376,0.18433766,944.41,943.05,1.05700392]
[1768418412476,0.18433766,944.41,943.01,1.05700392]
[1768418413077,0.18433766,944.41,943.0,1.05700392]
[1768418414377,0.18433766,944.41,942.99,1.05700392]
[1768418416084,0.18433766,944.41,943.0,1.05700392]
[1768418417384,0.18433766,944.41,942.99,1.05700392]
[1768418418587,1.131,944.4,943.0,1.05700392]
[1768418420386,1.131,944.4,942.99,1.05700392]
[1768418430391,1.131,944.4,943.0,1.05700392]
[1768418432293,1.131,944.4,943.01,1.05700392]
[1768418434195,1.131,944.4,943.02,1.05700392]
[1768418434494,1.131,944.4,943.08,1.05700392]
[1768418435199,1.131,944.4,943.09,1.05700392]
[1768418437307,1.131,944.4,943.1,1.05700392]
[1768418437907,1.131,944.4,943.15,1.05700392]
[1768418438209,1.131,944.4,943.16,1.05700392]
[1768418439304,1.131,944.4,942.31,2.63651861]
[1768418439305,1.131,944.4,943.18,1.05700392]
[1768418439511,1.131,944.4,943.45,1.05700392]
[1768418439705,0.00866175,945.35,943.78,1.05700392]
[1768418439913,0.18428787,944.78,943.78,1.05700392]
[1768418440109,0.00866175,945.35,943.76,1.05700392]
[1768418440308,0.18414355,944.94,943.73,1.05700392]
[1768418440505,0.18414355,944.94,943.86,1.05700392]
[1768418440707,0.18414355,944.94,943.88,1.05700392]
[1768418440906,3.68251559,946.64,943.88,1.05700392]
[1768418441209,3.68251559,946.64,943.82,1.05700392]
[1768418441210,0.18413039,945.04,943.82,1.05700392]
[1768418441409,0.01256879,945.88,943.84,1.05700392]
[1768418441609,0.1841226,945.07,943.84,1.05700392]
[1768418441909,3.68251559,946.76,943.89,1.05700392]
[1768418442309,3.68251559,946.76,943.84,1.05700392]
[1768418442505,3.68251559,946.76,943.86,1.05700392]
[1768418442910,3.68251559,946.82,943.86,1.05700392]
[1768418443206,0.18410117,946.04,943.82,1.05700392]
[1768418444023,1.783,946.03,943.82,1.05700392]
[1768418444310,1.783,946.03,943.65,1.5768736]
[1768418444311,1.783,946.03,943.8,1.05700392]
[1768418445309,1.783,946.03,943.77,1.05700392]
[1768418446307,1.783,946.03,943.74,1.05700392]
[1768418447310,1.783,946.03,943.72,1.05700392]
[1768418448007,1.783,946.03,943.76,1.05700392]
[1768418448207,1.783,946.03,943.74,1.05700392]
[1768418448913,1.783,946.03,943.88,1.05700392]
[1768418449212,1.783,946.03,944.2,0.77493414]
[1768418450413,1.783,946.03,944.17,0.77493414]
[1768418451219,1.783,946.03,944.15,0.77493414]
[1768418451714,1.783,946.03,944.09,0.77493414]
[1768418451912,1.783,946.03,944.05,0.77493414]
[1768418452215,1.783,946.03,944.04,0.77493414]
[1768418453416,1.783,946.03,944.02,0.77493414]
[1768418454317,1.783,946.03,944.01,0.77493414]
[1768418454817,1.783,946.03,943.93,0.77493414]
[1768418455216,1.783,946.03,943.92,0.77493414]
[1768418456314,1.783,946.03,943.91,0.77493414]
[1768418457217,1.783,946.03,943.9,0.77493414]
[1768418457817,1.783,946.03,943.88,0.77493414]
[1768418458012,1.783,946.03,943.85,0.77493414]
[1768418459314,1.783,946.03,943.84,0.77493414]
[1768418462016,1.783,946.03,943.77,0.77493414]
[1768418462318,1.783,946.03,943.78,0.77493414]
[1768418463315,1.783,946.03,943.77,0.77493414]
[1768418463619,1.783,946.03,943.67,0.77493414]
[1768418463914,1.783,946.03,943.66,0.77493414]
[1768418464220,1.783,946.03,942.65,2.63651861]
[1768418464221,1.783,946.03,943.67,0.77493414]
[1768418464414,1.783,946.03,943.63,0.77493414]
[1768418464619,1.783,946.03,943.61,0.77493414]
[1768418464819,1.783,946.03,943.59,0.77493414]
[1768418465115,1.783,946.03,943.6,0.77493414]
[1768418465321,1.783,946.03,942.57,2.63651861]
[1768418465322,1.783,946.03,943.58,0.77493414]
[1768418465620,1.783,946.03,943.56,0.77493414]
[1768418465920,1.783,946.03,943.55,0.77493414]
[1768418466119,1.783,946.03,943.56,0.77493414]
[1768418467116,1.783,946.03,943.57,0.77493414]
[1768418467616,1.783,946.03,943.56,0.77493414]
[1768418468220,1.783,946.03,943.57,0.77493414]
[1768418469020,0.18410117,946.04,943.57,0.77493414]
[1768418469320,0.18410117,946.04,943.59,0.77493414]
[1768418469521,0.18410117,946.04,943.58,0.77493414]
[1768418470220,0.18410117,946.04,943.59,0.77493414]
[1768418470516,0.18410117,946.04,943.6,0.77493414]
[1768418471318,0.18410117,946.04,943.61,0.77493414]
[1768418471618,0.18410117,946.04,943.7,0.77493414]
[1768418472119,0.18410117,946.04,943.71,0.77493414]
[1768418472418,0.18410117,946.04,943.77,0.77493414]
[1768418472825,1.173,946.03,943.77,0.77493414]
[1768418473323,1.173,946.03,943.78,0.77493414]
[1768418474319,1.173,946.03,943.8,0.77493414]
[1768418475225,1.173,946.03,943.79,0.77493414]
[1768418475726,1.173,946.03,943.72,0.77493414]
[1768418476025,1.173,946.03,943.7,0.77493414]
[1768418476226,1.173,946.03,943.72,0.77493414]
[1768418477322,1.173,946.03,943.74,0.77493414]
[1768418478123,1.173,946.03,943.75,0.77493414]
[1768418478422,1.173,946.03,943.76,0.77493414]
[1768418479124,1.173,946.03,943.77,0.77493414]
[1768418479324,1.173,946.03,943.73,0.77493414]
[1768418480427,1.173,946.03,943.75,0.77493414]
[1768418481327,1.173,946.03,943.78,0.77493414]
[1768418482225,1.173,946.03,943.81,0.77493414]
[1768418482933,1.173,946.03,943.61,0.77493414]
[1768418483126,1.173,946.03,943.57,0.77493414]
[1768418483426,1.173,946.03,943.59,0.77493414]
[1768418484328,1.173,946.03,943.61,0.77493414]
[1768418484528,1.173,946.03,943.59,0.77493414]
[1768418485227,1.173,946.03,943.58,0.77493414]
[1768418486229,1.173,946.03,943.57,0.77493414]
[1768418486830,1.173,946.03,943.56,0.77493414]
[1768418488146,1.173,946.03,943.55,0.77493414]
[1768418489136,1.173,946.03,943.54,0.77493414]
[1768418489336,1.173,946.03,943.56,0.77493414]
[1768418490937,1.173,946.03,943.55,0.77493414]
[1768418491137,1.173,946.03,943.54,0.77493414]
[1768418491538,1.173,946.03,943.52,0.77493414]
[1768418493042,1.173,946.03,943.51,0.77493414]
[1768418494238,1.173,946.03,943.52,0.77493414]
[1768418495354,1.173,946.03,943.53,0.77493414]
[1768418496239,1.173,946.03,943.51,0.77493414]
[1768418497344,1.173,946.03,943.52,0.77493414]
[1768418497646,1.173,946.03,943.51,0.77493414]
[1768418497945,1.173,946.03,943.52,0.77493414]
[1768418498146,1.173,946.03,943.51,0.77493414]
[1768418498458,1.173,946.03,943.52,0.77493414]
[1768418500242,1.173,946.03,943.53,0.77493414]
[1768418501149,1.173,946.03,943.54,0.77493414]
[1768418501349,1.173,946.03,943.55,0.77493414]
[1768418502346,1.173,946.03,943.56,0.77493414]
[1768418502749,1.173,946.03,943.62,0.77493414]
[1768418503246,1.173,946.03,942.55,0.18418204]
[1768418503247,1.173,946.03,943.63,0.77493414]
[1768418504247,1.173,946.03,943.64,0.77493414]
[1768418505950,1.173,946.03,943.66,0.77493414]
[1768418506147,1.173,946.03,943.68,0.77493414]
[1768418507252,1.173,946.03,943.69,0.77493414]
[1768418508350,1.173,946.03,943.7,0.77493414]
[1768418509355,1.173,946.03,943.63,0.77493414]
[1768418512256,1.173,946.03,943.64,0.77493414]
[1768418514958,1.173,946.03,943.62,0.77493414]
[1768418515254,1.173,946.03,943.61,0.77493414]
[1768418517058,1.173,946.03,943.62,0.77493414]
[1768418518259,1.173,946.03,943.63,0.77493414]
[1768418519064,1.173,946.03,943.64,0.77493414]
[1768418519260,1.173,946.03,943.57,0.77493414]
[1768418519768,3.68251559,946.01,943.57,0.77493414]
[1768418520162,3.68251559,946.01,943.58,0.77493414]
[1768418520665,3.68251559,946.01,943.54,0.77493414]
[1768418520963,3.68251559,945.95,943.54,0.77493414]
[1768418521362,3.68251559,945.95,943.45,0.77493414]
[1768418521871,3.68251559,945.85,943.45,0.77493414]
[1768418522063,3.68251559,945.85,943.46,0.77493414]
[1768418522267,3.68251559,945.85,943.37,0.77493414]
[1768418522562,3.68251559,945.85,943.27,0.77493414]
[1768418522764,3.68251559,945.65,943.26,0.77493414]
[1768418522966,3.68251559,945.65,943.24,0.77493414]
[1768418523177,3.68251559,945.65,943.23,0.77493414]
[1768418523366,3.68251559,945.65,943.19,0.77493414]
[1768418523866,3.68251559,945.6,943.19,0.77493414]
[1768418524064,3.68251559,945.6,943.17,0.77493414]
[1768418525062,3.68251559,945.61,943.17,0.77493414]
[1768418525263,3.68251559,945.61,943.16,0.77493414]
[1768418525968,3.68251559,945.62,943.16,0.77493414]
[1768418526165,3.68251559,945.62,943.15,0.77493414]
[1768418526769,1.552,945.61,943.15,0.77493414]
[1768418527166,1.552,945.61,943.19,0.77493414]
[1768418527467,1.552,945.61,943.36,0.77493414]
[1768418528666,1.552,945.61,943.39,0.77493414]
[1768418528869,1.552,945.61,943.4,0.77493414]
[1768418529372,1.552,945.61,943.49,0.77493414]
[1768418529768,1.552,945.61,943.57,0.77493414]
[1768418539378,1.552,945.61,943.37,1.05700392]
[1768418540479,1.552,945.61,943.29,1.05700392]
[1768418542084,1.552,945.61,943.17,1.05700392]
[1768418542579,1.552,945.61,943.1,1.05700392]
[1768418543881,1.552,945.61,943.08,1.05700392]
[1768418544086,1.552,945.61,943.07,1.05700392]
[1768418544284,1.552,945.61,943.0,1.05700392]
[1768418544486,1.552,945.61,942.96,1.05700392]
[1768418544685,1.552,945.61,942.93,1.05700392]
[1768418545083,5.23451559,945.61,942.91,1.05700392]
[1768418545286,5.23451559,945.61,942.89,1.05700392]
[1768418546088,3.68251559,945.6,942.89,1.05700392]
[1768418546288,3.68251559,945.6,942.88,1.05700392]
[1768418547189,1.552,945.61,942.87,1.05700392]
[1768418547990,1.552,945.61,942.85,1.05700392]
[1768418548291,1.552,945.61,942.84,1.05700392]
[1768418548586,1.552,945.61,942.82,1.05700392]
[1768418548790,3.68251559,945.63,942.82,1.05700392]
[1768418549186,3.68251559,945.61,942.8,1.05700392]
[1768418549389,3.68251559,945.61,942.82,1.05700392]
[1768418550190,3.68251559,945.61,942.81,1.05700392]
[1768418550489,3.68251559,945.64,942.81,1.05700392]
[1768418550685,3.68251559,945.64,942.8,1.05700392]
[1768418551290,3.68251559,945.54,942.68,1.05700392]
[1768418551791,1.394,945.53,942.68,1.05700392]
[1768418552187,1.394,945.53,942.66,1.05700392]
[1768418552491,1.394,945.53,942.65,1.05700392]
[1768418552686,1.394,945.53,942.59,1.05700392]
[1768418552990,1.394,945.53,942.54,1.05700392]
[1768418553190,1.394,945.53,942.52,1.05700392]
[1768418553391,3.68251559,945.43,942.52,1.05700392]
[1768418554193,3.68251559,945.43,942.47,1.05700392]
[1768418554393,1.394,945.53,942.43,1.05700392]
[1768418554394,3.68251559,945.38,942.43,1.05700392]
[1768418554888,3.68251559,945.38,942.46,1.05700392]
[1768418555293,3.68251559,945.38,942.44,1.05700392]
[1768418555594,3.68251559,945.42,942.49,1.05700392]
[1768418556193,3.68251559,945.42,942.47,1.05700392]
[1768418556494,3.68251559,945.48,942.47,1.05700392]
[1768418557195,3.68251559,945.48,942.46,1.05700392]
[1768418558497,3.68251559,945.49,942.46,1.05700392]
[1768418559196,3.68251559,945.49,942.45,1.05700392]
[1768418560794,3.68251559,945.5,942.45,1.05700392]
[1768418561098,3.68251559,945.5,942.44,1.05700392]
[1768418566905,1.394,945.53,942.52,1.05700392]
[1768418567197,1.394,945.53,942.89,1.05700392]
[1768418567597,1.394,945.53,942.9,1.05700392]
[1768418568100,1.394,945.53,942.91,1.05700392]
[1768418569300,1.394,945.53,942.85,1.05700392]
[1768418569506,1.394,945.53,943.11,0.78172863]
[1768418570099,1.394,945.53,943.1,0.78172863]
[1768418570497,1.394,945.53,943.09,0.78172863]
[1768418570696,1.394,945.53,943.08,0.78172863]
[1768418575299,1.394,945.53,943.07,0.78172863]
[1768418575602,1.394,945.53,943.09,0.78172863]
[1768418575804,3.68251559,945.94,943.09,0.78172863]
[1768418577104,3.68251559,945.94,943.08,0.78172863]
[1768418577306,3.68251559,945.92,943.09,0.78172863]
[1768418578402,3.68251559,945.88,943.06,0.78172863]
[1768418579002,3.68251559,945.88,943.04,0.78172863]
[1768418579202,3.68251559,945.88,943.05,0.78172863]
[1768418579501,3.68251559,945.88,942.03,2.63651861]
[1768418579502,3.68251559,945.9,943.1,0.78172863]
[1768418580202,3.68251559,945.9,943.11,0.78172863]
[1768418581108,3.68251559,945.9,943.12,0.78172863]
[1768418581505,3.68251559,945.89,943.12,0.78172863]
[1768418582209,3.68251559,945.89,943.13,0.78172863]
[1768418582705,3.68251559,945.87,943.13,0.78172863]
[1768418583309,3.68251559,945.87,943.15,0.78172863]
[1768418583508,1.349,945.91,943.15,0.78172863]
[1768418583509,3.68251559,945.86,943.15,0.78172863]
[1768418584109,3.68251559,945.86,943.16,0.78172863]
[1768418584610,3.68251559,945.85,943.16,0.78172863]
[1768418585209,3.68251559,945.85,943.17,0.78172863]
[1768418585415,3.68251559,945.85,943.18,0.78172863]
[1768418585608,3.68251559,945.84,943.17,0.78172863]
[1768418586414,3.68251559,945.84,943.18,0.78172863]
[1768418586614,3.68251559,945.82,943.18,0.78172863]
[1768418587216,3.68251559,945.82,943.19,0.78172863]
[1768418587917,3.68251559,945.82,943.16,0.78172863]
[1768418588117,3.68251559,945.82,943.13,0.78172863]
[1768418588716,3.68251559,945.76,943.13,0.78172863]
[1768418589017,3.68251559,945.76,943.08,0.78172863]
[1768418589318,3.68251559,945.76,943.04,0.78172863]
[1768418589817,3.68251559,945.66,943.03,0.78172863]
[1768418590717,3.68251559,945.65,943.03,0.78172863]
[1768418591514,3.68251559,945.65,943.04,0.78172863]
[1768418591716,3.68251559,945.7,943.08,0.78172863]
[1768418592019,3.68251559,945.7,943.14,0.78172863]
[1768418592817,3.68251559,945.76,943.14,0.78172863]
[1768418593618,3.68251559,945.76,943.15,0.78172863]
[1768418593818,3.68251559,945.77,943.15,0.78172863]
[1768418594924,3.68251559,945.78,943.15,0.78172863]
[1768418596724,3.68251559,945.78,943.14,0.78172863]
[1768418597023,3.68251559,945.76,943.13,0.78172863]
[1768418598224,3.68251559,945.76,943.14,0.78172863]
[1768418599021,3.68251559,945.83,943.21,0.78172863]
[1768418599221,3.68251559,945.83,943.22,0.78172863]
[1768418599523,3.68251559,945.83,943.21,0.78172863]
[1768418600022,3.68251559,945.82,943.21,0.78172863]
[1768418600220,3.68251559,945.82,943.22,0.78172863]
[1768418601020,3.68251559,945.81,943.22,0.78172863]
[1768418602328,3.68251559,945.81,943.23,0.78172863]
[1768418603130,3.68251559,945.81,943.24,0.78172863]
[1768418603427,3.68251559,945.8,943.24,0.78172863]
[1768418604234,3.68251559,945.79,943.25,0.78172863]
[1768418605227,3.68251559,945.78,943.26,0.78172863]
[1768418606133,3.68251559,945.78,943.28,0.78172863]
[1768418607238,3.68251559,945.78,943.29,0.78172863]
[1768418607537,3.68251559,945.77,943.29,0.78172863]
[1768418608137,3.68251559,945.77,943.12,1.05700392]
[1768418608138,3.68251559,945.77,943.31,0.78172863]
[1768418608337,3.68251559,945.75,943.31,0.78172863]
[1768418609234,3.68251559,945.75,943.32,0.78172863]
[1768418609437,3.68251559,945.72,943.31,0.78172863]
[1768418610139,3.68251559,945.72,943.33,0.78172863]
[1768418610439,3.68251559,945.69,943.33,0.78172863]
[1768418611339,3.68251559,945.69,943.36,0.78172863]
[1768418611639,3.68251559,945.66,943.36,0.78172863]
[1768418613540,3.68251559,945.64,943.34,0.78172863]
[1768418613741,3.68251559,945.64,943.12,1.05700392]
[1768418614638,3.68251559,945.59,943.12,1.05700392]
[1768418615339,3.68251559,945.59,943.14,1.05700392]
[1768418615538,3.68251559,945.61,943.14,1.05700392]
[1768418617639,3.68251559,945.62,943.15,1.05700392]
[1768418617844,3.68251559,945.62,943.25,1.05700392]
[1768418618143,3.68251559,945.83,943.36,1.05700392]
[1768418618540,3.68251559,945.83,943.37,1.05700392]
[1768418619247,3.68251559,945.87,943.35,1.05700392]
[1768418619445,3.68251559,945.87,943.29,1.05700392]
[1768418620142,3.68251559,945.82,943.29,1.05700392]
[1768418620445,3.68251559,945.82,943.33,1.05700392]
[1768418620742,3.68251559,945.82,943.46,1.05700392]
[1768418621346,1.349,945.91,943.52,1.05700392]
[1768418622345,1.349,945.91,943.49,1.05700392]
[1768418623147,1.349,945.91,943.48,1.05700392]
[1768418623443,1.349,945.91,943.46,1.05700392]
[1768418624344,1.349,945.91,943.44,1.05700392]
[1768418625344,1.349,945.91,943.42,1.05700392]
[1768418626149,1.349,945.91,942.57,2.63651861]
[1768418626150,1.349,945.91,943.41,1.05700392]
[1768418626849,0.18410117,946.04,943.41,1.05700392]
[1768418627352,0.18410117,946.04,943.39,1.05700392]
[1768418628146,0.18410117,946.04,943.38,1.05700392]
[1768418629352,0.18410117,946.04,943.49,1.05700392]
[1768418629553,0.18410117,946.04,943.48,1.05700392]
[1768418630255,0.18410117,946.04,943.47,1.05700392]
[1768418630651,1.564,946.03,943.47,1.05700392]
[1768418632053,1.564,946.03,943.46,1.05700392]
[1768418632357,1.564,946.03,943.37,1.05700392]
[1768418633658,1.564,946.03,943.35,1.05700392]
[1768418633864,1.564,946.03,943.28,1.05700392]
[1768418634357,1.564,946.03,943.2,1.05700392]
[1768418635357,1.564,946.03,943.21,1.05700392]
[1768418637058,1.564,946.03,943.15,1.05700392]
[1768418638259,1.564,946.03,943.16,1.05700392]
[1768418639358,1.564,946.03,943.2,1.05700392]
[1768418641061,1.564,946.03,943.21,1.05700392]
[1768418641261,1.564,946.03,943.2,1.05700392]